Workbook

Sheet GENERAL
A1: MODBUS TABLE ORGANIZATION
A2: Starting Address of the Group Registers (Dec) | B2: Starting Address of the Group Registers (Hex) | C2: System Version (Release) | D2: System Version (Build) | E2: Group Name (Text) | F2: Group Code (Hex) | G2: Group Complexity (Hex) | H2: Group Version (Hex)
A3: =HEX2DEC(B3) -> 2096 | B3: 830 | E3: State of the Inputs
A4: =HEX2DEC(B4) -> 4096 | B4: 1000 | E4: Counters
A5: =HEX2DEC(B5) -> 4168 | B5: 1048 | E5: Settings
A6: =HEX2DEC(B6) -> 4242 | B6: 1092 | E6: Counter type
A7: =HEX2DEC(B7) -> 4244 | B7: 1094 | E7: Counters with Tarif
A8: 4352 | B8: 1100 | E8: Counters
A9: 4608 | B9: 1200 | E9: Counting as displayed
A13: MODBUS PROTOCOL DETAILS
A14: Function Code (Dec) | B14: Exception Codes (Dec) | C14: Data Encoding
A15: 3 | B15: 1, 2, 3 | C15: "Big Endian" (most significant byte first)
A16: 16 | B16: 1, 2, 3
A18: MODBUS OVER SERIAL DETAILS
A19: Physical Layer | B19: Trasmission Modes | C19: Device Addressing | D19: Baud Rates (bit/s) | E19: Data Bits | F19: Data bits trasmission sequence | G19: Parity | H19: Stop Bits
A20: standard EIA/TIA 485 (RS-485) two-wire configuration | B20: RTU | C20: 1÷247 | D20: programmable | E20: 8 | F20: Least significant bit first | G20: programmable | H20: 1
A22: MASTER/SLAVE COMMUNICATION TIMING
A23: Timer Descrtiption | B23: Timer Value (msec)
A24: Inter-character time-out | B24: Max. 20
A25: Response delay (from master request) | B25: 20÷300
A26: Delay Time (between two master trasmissions) | B26: < 20
A28: REFER ALSO TO: | B28: www.modbus.org | C28: - MODBUS over serial line specification and implementation guide V1.02
C29: - MODBUS APPLICATION PROTOCOL SPECIFICATION V1.1b
A31: NOTE: | B31: File and printed copies of this document are not subject to document change control.

Sheet DISCRETE INPUT - Bits (R)
A1: Register Number | B1: Register Address (Dec) | C1: Register Address (Hex) | D1: Dimension [bit] | E1: Description | F1: Note | G1: Read Function Codes (Dec) | H1: Data Storing (2)

Sheet COILS - Bits (R&W)
A1: Register Number | B1: Register Address (Dec) | C1: Register Address (Hex) | D1: Dimension [bit] | E1: Description | F1: Note | G1: Read Function Codes (Dec) | H1: Write Function Codes (Dec) | I1: Data Storing (2)
E2: (no COILS availables)

Sheet INPUT REGISTERS - Words (R)
A1: Register Number | B1: Register Address (Dec) | C1: Register Address (Hex) | D1: Dimension [word] | E1: Bit Position | F1: Description | G1: Type | H1: Scale | I1: Unit | J1: Range | K1: Note | L1: Read Function Code (Dec) | M1: Data Storing (2)
A2: =B2+1 -> 2097 | B2: =GENERAL!A3 -> 2096 | C2: =GENERAL!B3 -> 830 | D2: =SUM(D3:D3) -> 2 | F2: =GENERAL!E3 -> State of the Inputs
A3: =B3+1 -> 2097 | B3: =B2 -> 2096 | C3: =DEC2HEX(B3) -> 830 | D3: 2 | F3: State of the Inputs | G3: unsigned integer | H3: - | I3: - | K3: See Note 1
A4: =B4+1 -> 4097 | B4: =GENERAL!A4 -> 4096 | C4: =GENERAL!B4 -> 1000 | D4: =SUM(D5:D40) -> 72 | F4: =GENERAL!E4 -> Counters
A5: =B5+1 -> 4097 | B5: =B4 -> 4096 | C5: =DEC2HEX(B5) -> 1000 | D5: 2 | F5: Counter 1 | G5: unsigned integer | H5: 1 | K5: See Note 2 | L5: =3 -> 3
A6: =B6+1 -> 4099 | B6: =B5+D5 -> 4098 | C6: 1002 | D6: 2 | F6: Counter 2 | G6: unsigned integer | H6: 1 | L6: =3 -> 3
A7: 4101 | B7: =B6+D6 -> 4100 | C7: 1004 | D7: 2 | F7: Counter 3 | G7: unsigned integer | H7: 1 | L7: =3 -> 3
A8: 4103 | B8: 4102 | C8: 1006 | D8: 2 | F8: Counter 4 | G8: unsigned integer | H8: 1 | L8: =3 -> 3
A9: 4105 | B9: 4104 | C9: 1008 | D9: 2 | F9: Counter 5 | G9: unsigned integer | H9: 1 | L9: =3 -> 3
A10: 4107 | B10: 4106 | C10: 100A | D10: 2 | F10: Counter 6 | G10: unsigned integer | H10: 1 | L10: =3 -> 3
A11: 4109 | B11: 4108 | C11: 100C | D11: 2 | F11: Counter 7 | G11: unsigned integer | H11: 1 | K11: See Note 2 & Note 3 | L11: =3 -> 3
A12: 4111 | B12: =B11+D11 -> 4110 | C12: 100E | D12: 2 | F12: Counter 8 | G12: unsigned integer | H12: 1 | K12: See Note 2 & Note 3 | L12: =3 -> 3
A13: 4113 | B13: 4112 | C13: 1010 | D13: 2 | F13: Counter 9 | G13: unsigned integer | H13: 1 | K13: See Note 2 | L13: =3 -> 3
A14: 4115 | B14: 4114 | C14: 1012 | D14: 2 | F14: Counter 10 | G14: unsigned integer | H14: 1 | L14: =3 -> 3
A15: 4117 | B15: 4116 | C15: 1014 | D15: 2 | F15: Counter 11 | G15: unsigned integer | H15: 1 | L15: =3 -> 3
A16: 4119 | B16: 4118 | C16: 1016 | D16: 2 | F16: Counter 12 | G16: unsigned integer | H16: 1 | L16: =3 -> 3
A17: 4121 | B17: =B16+D16 -> 4120 | C17: 1018 | D17: 2 | F17: Unit Counter 1 | G17: unsigned integer | H17: 1 | J17: 0 ÷ 5 | K17: 0: Pulses 1: kWh 2: kvarh 3: kVAh 4: m3 5: Nm3 | L17: =3 -> 3
A18: 4123 | B18: 4122 | C18: 101A | D18: 2 | F18: Unit Counter 2 | G18: unsigned integer | H18: 1 | L18: =3 -> 3
A19: 4125 | B19: 4124 | C19: 101C | D19: 2 | F19: Unit Counter 3 | G19: unsigned integer | H19: 1 | L19: =3 -> 3
A20: 4127 | B20: 4126 | C20: 101E | D20: 2 | F20: Unit Counter 4 | G20: unsigned integer | H20: 1 | L20: =3 -> 3
A21: 4129 | B21: 4128 | C21: 1020 | D21: 2 | F21: Unit Counter 5 | G21: unsigned integer | H21: 1 | L21: =3 -> 3
A22: 4131 | B22: 4130 | C22: 1022 | D22: 2 | F22: Unit Counter 6 | G22: unsigned integer | H22: 1 | L22: =3 -> 3
A23: 4133 | B23: 4132 | C23: 1024 | D23: 2 | F23: Unit Counter 7 | G23: unsigned integer | H23: 1 | L23: =3 -> 3
A24: 4135 | B24: 4134 | C24: 1026 | D24: 2 | F24: Unit Counter 8 | G24: unsigned integer | H24: 1 | L24: =3 -> 3
A25: 4137 | B25: 4136 | C25: 1028 | D25: 2 | F25: Unit Counter 9 | G25: unsigned integer | H25: 1 | L25: =3 -> 3
A26: 4139 | B26: 4138 | C26: 102A | D26: 2 | F26: Unit Counter 10 | G26: unsigned integer | H26: 1 | L26: =3 -> 3
A27: 4141 | B27: 4140 | C27: 102C | D27: 2 | F27: Unit Counter 11 | G27: unsigned integer | H27: 1 | L27: =3 -> 3
A28: 4143 | B28: 4142 | C28: 102E | D28: 2 | F28: Unit Counter 12 | G28: unsigned integer | H28: 1 | L28: =3 -> 3
A29: 4145 | B29: 4144 | C29: 1030 | D29: 2 | F29: Weight Counter 1 | G29: unsigned integer | H29: 1 | J29: 0 ÷ 6 | K29: 0: 0,001 (kWh, kvarh, kVA, m3, Nm3) 1: 0,01 (kWh, kvarh, kVA, m3, Nm3) 2: 0,1 (kWh, kvarh, kVA, m3, Nm3) 3: 1 (kWh, kvarh, kVA, m3, Nm3) 4: 10 (kWh, kvarh, kVA, m3, Nm3) 5: 100 (kWh, kvarh, kVA, m3, Nm3) 6: 1000 (kWh, kvarh, kVA, m3, Nm3) | L29: =3 -> 3
A30: 4147 | B30: 4146 | C30: 1032 | D30: 2 | F30: Weight Counter 2 | G30: unsigned integer | H30: 1 | L30: =3 -> 3
A31: 4149 | B31: 4148 | C31: 1034 | D31: 2 | F31: Weight Counter 3 | G31: unsigned integer | H31: 1 | L31: =3 -> 3
A32: 4151 | B32: 4150 | C32: 1036 | D32: 2 | F32: Weight Counter 4 | G32: unsigned integer | H32: 1 | L32: =3 -> 3
A33: 4153 | B33: 4152 | C33: 1038 | D33: 2 | F33: Weight Counter 5 | G33: unsigned integer | H33: 1 | L33: =3 -> 3
A34: 4155 | B34: 4154 | C34: 103A | D34: 2 | F34: Weight Counter 6 | G34: unsigned integer | H34: 1 | L34: =3 -> 3
A35: 4157 | B35: 4156 | C35: 103C | D35: 2 | F35: Weight Counter 7 | G35: unsigned integer | H35: 1 | L35: =3 -> 3
A36: 4159 | B36: 4158 | C36: 103E | D36: 2 | F36: Weight Counter 8 | G36: unsigned integer | H36: 1 | L36: =3 -> 3
A37: 4161 | B37: 4160 | C37: 1040 | D37: 2 | F37: Weight Counter 9 | G37: unsigned integer | H37: 1 | L37: =3 -> 3
A38: 4163 | B38: 4162 | C38: 1042 | D38: 2 | F38: Weight Counter 10 | G38: unsigned integer | H38: 1 | L38: =3 -> 3
A39: 4165 | B39: 4164 | C39: 1044 | D39: 2 | F39: Weight Counter 11 | G39: unsigned integer | H39: 1 | L39: =3 -> 3
A40: 4167 | B40: 4166 | C40: 1046 | D40: 2 | F40: Weight Counter 12 | G40: unsigned integer | H40: 1 | L40: =3 -> 3
A41: =B41+1 -> 4169 | B41: =GENERAL!A5 -> 4168 | C41: =GENERAL!B5 -> 1048 | D41: =SUM(D42:D77) -> 72 | F41: =GENERAL!E5 -> Settings
A42: =B42+1 -> 4169 | B42: =B41 -> 4168 | C42: =DEC2HEX(B42) -> 1048 | D42: 2 | F42: Current transformer ratio - Input 1 (CT1) | G42: unsigned integer | H42: 1 | J42: from 1 to 9999 | L42: =3 -> 3
A43: =B43+1 -> 4171 | B43: =B42+D42 -> 4170 | C43: =DEC2HEX(B43) -> 104A | D43: 2 | F43: Current transformer ratio - Input 2 (CT2) | G43: unsigned integer | H43: 1 | L43: =3 -> 3
A44: =B44+1 -> 4173 | B44: =B43+D43 -> 4172 | C44: =DEC2HEX(B44) -> 104C | D44: 2 | F44: Current transformer ratio - Input 3 (CT3) | G44: unsigned integer | H44: 1 | L44: 3
A45: =B45+1 -> 4175 | B45: =B44+D44 -> 4174 | C45: =DEC2HEX(B45) -> 104E | D45: 2 | F45: Current transformer ratio - Input 4 (CT4) | G45: unsigned integer | H45: 1 | L45: =3 -> 3
A46: 4177 | B46: 4176 | C46: 1050 | D46: 2 | F46: Current transformer ratio - Input 5 (CT5) | G46: unsigned integer | H46: 1 | L46: 3
A47: 4179 | B47: 4178 | C47: 1052 | D47: 2 | F47: Current transformer ratio - Input 6 (CT6) | G47: unsigned integer | H47: 1 | L47: =3 -> 3
A48: =B48+1 -> 4181 | B48: =B47+D47 -> 4180 | C48: =DEC2HEX(B48) -> 1054 | D48: 2 | F48: Current transformer ratio - Input 7 (CT7) | G48: unsigned integer | H48: 1 | L48: =3 -> 3
A49: 4183 | B49: 4182 | C49: 1056 | D49: 2 | F49: Current transformer ratio - Input 8 (CT8) | G49: unsigned integer | H49: 1 | L49: =3 -> 3
A50: 4185 | B50: 4184 | C50: 1058 | D50: 2 | F50: Current transformer ratio - Input 9 (CT9) | G50: unsigned integer | H50: 1 | L50: =3 -> 3
A51: 4187 | B51: 4186 | C51: 105A | D51: 2 | F51: Current transformer ratio - Input 10 (CT10) | G51: unsigned integer | H51: 1 | L51: =3 -> 3
A52: 4189 | B52: 4188 | C52: 105C | D52: 2 | F52: Current transformer ratio - Input 11 (CT11) | G52: unsigned integer | H52: 1 | L52: =3 -> 3
A53: 4191 | B53: 4190 | C53: 105E | D53: 2 | F53: Current transformer ratio - Input 12 (CT12) | G53: unsigned integer | H53: 1 | L53: =3 -> 3
A54: 4193 | B54: 4192 | C54: 1060 | D54: 2 | F54: Volatge transformer ratio - Input 1 (VT1) | G54: unsigned integer | H54: 0.1 | J54: from 10 to 30000 (1 ÷ 3000) | L54: =3 -> 3
A55: 4195 | B55: 4194 | C55: 1062 | D55: 2 | F55: Volatge transformer ratio - Input 2 (VT2) | G55: unsigned integer | H55: 0.1 | L55: =3 -> 3
A56: 4197 | B56: 4196 | C56: 1064 | D56: 2 | F56: Volatge transformer ratio - Input 3 (VT3) | G56: unsigned integer | H56: 0.1 | L56: =3 -> 3
A57: 4199 | B57: 4198 | C57: 1066 | D57: 2 | F57: Volatge transformer ratio - Input 4 (VT4) | G57: unsigned integer | H57: 0.1 | L57: =3 -> 3
A58: 4201 | B58: 4200 | C58: 1068 | D58: 2 | F58: Volatge transformer ratio - Input 5 (VT5) | G58: unsigned integer | H58: 0.1 | L58: =3 -> 3
A59: 4203 | B59: 4202 | C59: 106A | D59: 2 | F59: Volatge transformer ratio - Input 6 (VT6) | G59: unsigned integer | H59: 0.1 | L59: =3 -> 3
A60: 4205 | B60: 4204 | C60: 106C | D60: 2 | F60: Volatge transformer ratio - Input 7 (VT7) | G60: unsigned integer | H60: 0.1 | L60: =3 -> 3
A61: 4207 | B61: 4206 | C61: 106E | D61: 2 | F61: Volatge transformer ratio - Input 8 (VT8) | G61: unsigned integer | H61: 0.1 | L61: =3 -> 3
A62: 4209 | B62: 4208 | C62: 1070 | D62: 2 | F62: Volatge transformer ratio - Input 9 (VT9) | G62: unsigned integer | H62: 0.1 | L62: =3 -> 3
A63: 4211 | B63: 4210 | C63: 1072 | D63: 2 | F63: Volatge transformer ratio - Input 10 (VT10) | G63: unsigned integer | H63: 0.1 | L63: =3 -> 3
A64: 4213 | B64: 4212 | C64: 1074 | D64: 2 | F64: Volatge transformer ratio - Input 11 (VT11) | G64: unsigned integer | H64: 0.1 | L64: =3 -> 3
A65: 4215 | B65: 4214 | C65: 1076 | D65: 2 | F65: Volatge transformer ratio - Input 12 (VT12) | G65: unsigned integer | H65: 0.1 | L65: =3 -> 3
A66: =B66+1 -> 4217 | B66: =B65+D65 -> 4216 | C66: =DEC2HEX(B66) -> 1078 | D66: 2 | F66: T OFF Input 1 | G66: unsigned integer | H66: 1 | J66: 0 ÷ 7 | K66: Time OFF is minimum time to wait before pulse may be considered complete 0: 5 ms 1: 10 ms 2: 20 ms 3: 40 ms 4: 50 ms 5: 100 ms 6: 200 ms 7: 500 ms | L66: =3 -> 3
A67: 4219 | B67: 4218 | C67: 107A | D67: 2 | F67: T OFF Input 2 | G67: unsigned integer | H67: 1 | L67: =3 -> 3
A68: 4221 | B68: 4220 | C68: 107C | D68: 2 | F68: T OFF Input 3 | G68: unsigned integer | H68: 1 | L68: =3 -> 3
A69: 4223 | B69: 4222 | C69: 107E | D69: 2 | F69: T OFF Input 4 | G69: unsigned integer | H69: 1 | L69: =3 -> 3
A70: 4225 | B70: 4224 | C70: 1080 | D70: 2 | F70: T OFF Input 5 | G70: unsigned integer | H70: 1 | L70: =3 -> 3
A71: 4227 | B71: 4226 | C71: 1082 | D71: 2 | F71: T OFF Input 6 | G71: unsigned integer | H71: 1 | L71: =3 -> 3
A72: 4229 | B72: 4228 | C72: 1084 | D72: 2 | F72: T OFF Input 7 | G72: unsigned integer | H72: 1 | L72: =3 -> 3
A73: 4231 | B73: 4230 | C73: 1086 | D73: 2 | F73: T OFF Input 8 | G73: unsigned integer | H73: 1 | L73: =3 -> 3
A74: 4233 | B74: 4232 | C74: 1088 | D74: 2 | F74: T OFF Input 9 | G74: unsigned integer | H74: 1 | L74: =3 -> 3
A75: 4235 | B75: 4234 | C75: 108A | D75: 2 | F75: T OFF Input 10 | G75: unsigned integer | H75: 1 | L75: =3 -> 3
A76: 4237 | B76: 4236 | C76: 108C | D76: 2 | F76: T OFF Input 11 | G76: unsigned integer | H76: 1 | L76: =3 -> 3
A77: 4239 | B77: 4238 | C77: 108E | D77: 2 | F77: T OFF Input 12 | G77: unsigned integer | H77: 1 | L77: =3 -> 3
A78: =B78+1 -> 4243 | B78: =GENERAL!A6 -> 4242 | C78: =GENERAL!B6 -> 1092 | D78: =SUM(D79) -> 2 | F78: =GENERAL!E6 -> Counter type
A79: =B79+1 -> 4243 | B79: =B78 -> 4242 | C79: =DEC2HEX(B79) -> 1092 | D79: 2 | F79: Counter type | G79: unsigned integer | H79: 1 | J79: 0 ÷ 3 | K79: 0: Potential Live (Pot Live) 1: Potential Free (Pot Free) 2: Potential Free, all inputs equals (PotAFree) 3: GME Enel (GME S0) | L79: =3 -> 3
A80: =B80+1 -> 4245 | B80: =GENERAL!A7 -> 4244 | C80: =GENERAL!B7 -> 1094 | D80: =SUM(D81:D100) -> 40 | F80: =GENERAL!E7 -> Counters with Tarif
A81: =B81+1 -> 4245 | B81: =B80 -> 4244 | C81: 1094 | D81: 2 | F81: Tarif 1 - Positive Active Energy | G81: unsigned integer | H81: 1 | K81: See Note 4 | L81: =3 -> 3
A82: 4247 | B82: =B81+D81 -> 4246 | C82: =DEC2HEX(B82) -> 1096 | D82: 2 | F82: Tarif 1 - Positive Reactive Energy | G82: unsigned integer | H82: 1 | L82: =3 -> 3
A83: 4249 | B83: =B82+D82 -> 4248 | C83: 1098 | D83: 2 | F83: Tarif 1 - Negative Active Energy | G83: unsigned integer | H83: 1 | L83: =3 -> 3
A84: 4251 | B84: 4250 | C84: 109A | D84: 2 | F84: Tarif 1 - Negative Reactive Energy | G84: unsigned integer | H84: 1 | L84: =3 -> 3
A85: 4253 | B85: 4252 | C85: 109C | D85: 2 | F85: Tarif 2 - Positive Active Energy | G85: unsigned integer | H85: 1 | L85: =3 -> 3
A86: 4255 | B86: 4254 | C86: 109E | D86: 2 | F86: Tarif 2 - Positive Reactive Energy | G86: unsigned integer | H86: 1 | L86: =3 -> 3
A87: 4257 | B87: 4256 | C87: 10A0 | D87: 2 | F87: Tarif 2 - Negative Active Energy | G87: unsigned integer | H87: 1 | L87: =3 -> 3
A88: 4259 | B88: 4258 | C88: 10A2 | D88: 2 | F88: Tarif 2 - Negative Reactive Energy | G88: unsigned integer | H88: 1 | L88: =3 -> 3
A89: 4261 | B89: 4260 | C89: 10A4 | D89: 2 | F89: Tarif 3 - Positive Active Energy | G89: unsigned integer | H89: 1 | L89: =3 -> 3
A90: 4263 | B90: 4262 | C90: 10A6 | D90: 2 | F90: Tarif 3 - Positive Reactive Energy | G90: unsigned integer | H90: 1 | L90: =3 -> 3
A91: 4265 | B91: 4264 | C91: 10A8 | D91: 2 | F91: Tarif 3 - Negative Active Energy | G91: unsigned integer | H91: 1 | L91: =3 -> 3
A92: 4267 | B92: 4266 | C92: 10AA | D92: 2 | F92: Tarif 3 - Negative Reactive Energy | G92: unsigned integer | H92: 1 | L92: =3 -> 3
A93: =B93+1 -> 4269 | B93: =B92+D92 -> 4268 | C93: 10AC | D93: 2 | F93: Tarif 4 - Positive Active Energy | G93: unsigned integer | H93: 1 | L93: =3 -> 3
A94: =B94+1 -> 4271 | B94: =B93+D93 -> 4270 | C94: 10AE | D94: 2 | F94: Tarif 4 - Positive Reactive Energy | G94: unsigned integer | H94: 1 | L94: =3 -> 3
A95: 4273 | B95: 4272 | C95: 10B0 | D95: 2 | F95: Tarif 4 - Negative Active Energy | G95: unsigned integer | H95: 1 | L95: =3 -> 3
A96: 4275 | B96: 4274 | C96: 10B2 | D96: 2 | F96: Tarif 4 - Negative Reactive Energy | G96: unsigned integer | H96: 1 | L96: =3 -> 3
A97: 4277 | B97: 4276 | C97: =DEC2HEX(B97) -> 10B4 | D97: 2 | F97: Multi-tarif - Positive Active Energy | G97: unsigned integer | H97: 1
A98: =B98+1 -> 4279 | B98: =B97+D97 -> 4278 | C98: 10B6 | D98: 2 | F98: Multi-tarif - Positive Reactive Energy | G98: unsigned integer | H98: 1 | L98: =3 -> 3
A99: 4281 | B99: 4280 | C99: 10B8 | D99: 2 | F99: Multi-tarif - Negative Active Energy | G99: unsigned integer | H99: 1 | L99: =3 -> 3
A100: 4283 | B100: 4282 | C100: 10BA | D100: 2 | F100: Multi-tarif - Negative Reactive Energy | G100: unsigned integer | H100: 1 | L100: =3 -> 3
A101: =B101+1 -> 4353 | B101: =GENERAL!A8 -> 4352 | C101: =GENERAL!B8 -> 1100 | D101: =SUM(D102:D141) -> 134 | F101: =GENERAL!E8 -> Counters
A102: =B102+1 -> 4353 | B102: =B101 -> 4352 | C102: 1100 | D102: 2 | F102: Counter 1 | G102: unsigned integer | H102: =1 -> 1 | K102: See Note 2 | L102: =3 -> 3
A103: 4355 | B103: =B102+D102 -> 4354 | C103: =DEC2HEX(B103) -> 1102 | D103: 2 | F103: Counter 2 | G103: unsigned integer | H103: =1 -> 1 | L103: =3 -> 3
A104: =B104+1 -> 4357 | B104: =B103+D103 -> 4356 | C104: 1104 | D104: 2 | F104: Counter 3 | G104: unsigned integer | H104: =1 -> 1 | L104: =3 -> 3
A105: 4359 | B105: 4358 | C105: 1106 | D105: 2 | F105: Counter 4 | G105: unsigned integer | H105: =1 -> 1 | L105: =3 -> 3
A106: 4361 | B106: 4360 | C106: 1108 | D106: 2 | F106: Counter 5 | G106: unsigned integer | H106: =1 -> 1 | L106: =3 -> 3
A107: 4363 | B107: 4362 | C107: 110A | D107: 2 | F107: Counter 6 | G107: unsigned integer | H107: =1 -> 1 | L107: =3 -> 3
A108: 4365 | B108: 4364 | C108: 110C | D108: 2 | F108: Counter 7 | G108: unsigned integer | H108: =1 -> 1 | K108: See Note 2 & Note 3 | L108: =3 -> 3
A109: 4367 | B109: 4366 | C109: 110E | D109: 2 | F109: Counter 8 | G109: unsigned integer | H109: =1 -> 1 | K109: See Note 2 & Note 3 | L109: =3 -> 3
A110: 4385 | B110: 4384 | C110: 1120 | D110: 2 | F110: Counter 9 | G110: unsigned integer | H110: =1 -> 1 | K110: See Note 2 | L110: =3 -> 3
A111: 4387 | B111: 4386 | C111: 1122 | D111: 2 | F111: Counter 10 | G111: unsigned integer | H111: =1 -> 1 | L111: =3 -> 3
A112: 4389 | B112: 4388 | C112: 1124 | D112: 2 | F112: Counter 11 | G112: unsigned integer | H112: =1 -> 1 | L112: =3 -> 3
A113: 4391 | B113: 4390 | C113: 1126 | D113: 2 | F113: Counter 12 | G113: unsigned integer | H113: =1 -> 1 | L113: =3 -> 3
A114: =B114+1 -> 4609 | B114: =GENERAL!A9 -> 4608 | C114: =GENERAL!B9 -> 1200 | D114: =SUM(D115:D142) -> 56 | F114: =GENERAL!E9 -> Counting as displayed
A115: =B115+1 -> 4609 | B115: =B114 -> 4608 | C115: =DEC2HEX(B115) -> 1200 | D115: 2 | F115: Coounting 1 as displayed | G115: signed integer | H115: =1 -> 1 | K115: See Note 5 | L115: =3 -> 3
A116: 4611 | B116: =B115+D115 -> 4610 | C116: 1202 | D116: 2 | F116: Coounting 2 as displayed | G116: signed integer | H116: =1 -> 1 | L116: =3 -> 3
A117: 4613 | B117: 4612 | C117: 1204 | D117: 2 | F117: Coounting 3 as displayed | G117: signed integer | H117: =1 -> 1 | L117: =3 -> 3
A118: 4615 | B118: 4614 | C118: 1206 | D118: 2 | F118: Coounting 4 as displayed | G118: signed integer | H118: =1 -> 1 | L118: =3 -> 3
A119: 4617 | B119: 4616 | C119: 1208 | D119: 2 | F119: Coounting 5 as displayed | G119: signed integer | H119: =1 -> 1 | L119: =3 -> 3
A120: 4619 | B120: 4618 | C120: 120A | D120: 2 | F120: Coounting 6 as displayed | G120: signed integer | H120: =1 -> 1 | L120: =3 -> 3
A121: 4621 | B121: 4620 | C121: 120C | D121: 2 | F121: Coounting 7 as displayed | G121: signed integer | H121: 1 | L121: =3 -> 3
A122: =B122+1 -> 4623 | B122: =B121+D121 -> 4622 | C122: =DEC2HEX(B122) -> 120E | D122: 2 | F122: Coounting 8 as displayed | G122: signed integer | H122: 1 | L122: =3 -> 3
A123: 4625 | B123: 4624 | C123: 1210 | D123: 2 | F123: Coounting 9 as displayed | G123: signed integer | H123: 1 | L123: =3 -> 3
A124: 4627 | B124: 4626 | C124: 1212 | D124: 2 | F124: Coounting 10 as displayed | G124: signed integer | H124: 1 | L124: =3 -> 3
A125: 4629 | B125: 4628 | C125: 1214 | D125: 2 | F125: Coounting 11 as displayed | G125: signed integer | H125: 1 | L125: =3 -> 3
A126: =B126+1 -> 4631 | B126: =B125+D125 -> 4630 | C126: =DEC2HEX(B126) -> 1216 | D126: 2 | F126: Coounting 12 as displayed | G126: unsigned integer | H126: =1 -> 1 | L126: =3 -> 3
A127: 4633 | B127: 4632 | C127: 1218 | D127: 2 | F127: Tarif 1 - Positive Active Energy as displayed | G127: unsigned integer | H127: =1 -> 1 | L127: =3 -> 3
A128: 4635 | B128: 4634 | C128: 121A | D128: 2 | F128: Tarif 1 - Positive Reactive Energy as displayed | G128: unsigned integer | H128: =1 -> 1 | L128: =3 -> 3
A129: 4637 | B129: 4636 | C129: 121C | D129: 2 | F129: Tarif 1 - Negative Active Energy as displayed | G129: unsigned integer | H129: =1 -> 1 | L129: =3 -> 3
A130: =B130+1 -> 4639 | B130: =B129+D129 -> 4638 | C130: =DEC2HEX(B130) -> 121E | D130: 2 | F130: Tarif 1 - Negative Reactive Energy as displayed | G130: unsigned integer | H130: =1 -> 1 | L130: =3 -> 3
A131: 4641 | B131: 4640 | C131: 1220 | D131: 2 | F131: Tarif 2 - Positive Active Energy as displayed | G131: unsigned integer | H131: =1 -> 1 | L131: =3 -> 3
A132: 4643 | B132: 4642 | C132: 1222 | D132: 2 | F132: Tarif 2 - Positive Reactive Energy as displayed | G132: unsigned integer | H132: 1 | L132: =3 -> 3
A133: =B133+1 -> 4645 | B133: =B132+D132 -> 4644 | C133: =DEC2HEX(B133) -> 1224 | D133: 2 | F133: Tarif 2 - Negative Active Energy as displayed | G133: unsigned integer | H133: 1 | L133: =3 -> 3
A134: 4647 | B134: 4646 | C134: 1226 | D134: 2 | F134: Tarif 2 - Negative Reactive Energy as displayed | G134: unsigned integer | H134: 1 | L134: =3 -> 3
A135: 4649 | B135: 4648 | C135: 1228 | D135: 2 | F135: Tarif 3 - Positive Active Energy as displayed | G135: unsigned integer | H135: 1 | L135: =3 -> 3
A136: 4651 | B136: 4650 | C136: 122A | D136: 2 | F136: Tarif 3 - Positive Reactive Energy as displayed | G136: unsigned integer | H136: 1 | L136: =3 -> 3
A137: 4653 | B137: 4652 | C137: 122C | D137: 2 | F137: Tarif 3 - Negative Active Energy as displayed | G137: unsigned integer | H137: 1 | L137: =3 -> 3
A138: 4655 | B138: 4654 | C138: 122E | D138: 2 | F138: Tarif 3 - Negative Reactive Energy as displayed | G138: unsigned integer | H138: 1 | L138: =3 -> 3
A139: 4657 | B139: 4656 | C139: 1230 | D139: 2 | F139: Tarif 4 - Positive Active Energy as displayed | G139: unsigned integer | H139: 1 | L139: =3 -> 3
A140: 4659 | B140: 4658 | C140: 1232 | D140: 2 | F140: Tarif 4 - Positive Reactive Energy as displayed | G140: unsigned integer | H140: 1 | L140: =3 -> 3
A141: 4661 | B141: 4660 | C141: 1234 | D141: 2 | F141: Tarif 4 - Negative Active Energy as displayed | G141: unsigned integer | H141: 1 | L141: =3 -> 3
A142: =B142+1 -> 4663 | B142: =B141+D141 -> 4662 | C142: =DEC2HEX(B142) -> 1236 | D142: 2 | F142: Tarif 4 - Negative Reactive Energy as displayed | G142: unsigned integer | H142: 1
B144: Note 1 - State of the Inputs
B145: The answer is in the following format : FF 03 02 W0 W1 To know the inputs status, convert W0 W1 in bynary Example: answer 0000 0101h -> 000100000001b -> Inputs 1 and 9 are closed b0 => Input 1 ... ... b11 => Input 12
B147: Note 2 - Counters
B148: To give a meaning to pulses it is necessary to take in account the pulse weight. For example: Pulse weight = 0.01 kWh Energy value (terminal side) = 1234 * 0.01 = 12.34 kWh
B150: Note 3 - Input 7 & 8
B151: If S0 input has been selected, counters 7 and 8 contain the Total Positive Active Energy (7) and Total Positive Reactive Energy (8) as pulse numbers: for instance 12345 value means 12345 PULSES. In all other cases they normally give the counts of input 7 and 8.
B153: Note 4 - Counters with Tariffs
B154: Only if Counter type = GME S0 To give a meaning to pulses it is necessary to take in account the pulse weight. For example : Input counting = 12345678 Pulses per kWh = 10000 Energy value (terminal side) = 12345678 / 10000 = 1234.5678 kWh
B156: Note 5 - Counting as displayed
B157: The communicated value is displayed value and not internal counting. For instance: First case: 8000 pulses per 1KWh Internal counting = 2000 Value on display 00000.25 kWh Communicated value 25 Second case: 1 pulse any 0.1 kWh Internal counting = 5000 Value on display 00000500 kWh Communicated value 500

Sheet HOLDING REGISTERS - Words (R&W)
A1: Register Number | B1: Register Address (Dec) | C1: Register Address (Hex) | D1: Dimension [word] | E1: Bit Position | F1: Description | G1: Type | H1: Scale | I1: Unit | J1: Range | K1: Note | L1: Read Function Codes (Dec) | M1: Write Function Codes (Hex) | N1: Data Storing (2)
